fUSD/lending_fUSD_20241227
["ID","MTS","AMOUNT","RATE_DAILY","PERIOD"]
[346774104,1735277248359,500.0,0.00011973,2]
[346774105,1735277248407,1546.34,0.00012797,2]
[346774106,1735277248554,579.0,0.00012521,2]
[346774107,1735277248601,500.0,0.00012247,2]
[346774108,1735277248768,3349.5,0.00011975,2]
[346774109,1735277248815,579.0,0.00012795,2]
[346774110,1735277248903,500.0,0.00012521,2]
[346774111,1735277249174,500.0,0.00012795,2]
[346774112,1735277249248,3349.5,0.00012249,2]
[346774113,1735277249319,1736.11111,0.00013,2]
[346774114,1735277249864,3349.5,0.00012523,2]
[346774115,1735277250473,756.33,0.00011973,2]
[346774116,1735277250891,756.33,0.00012247,2]
[346774117,1735277250937,3349.5,0.00012797,2]
[346774118,1735277251005,756.33,0.00012521,2]
[346774119,1735277251287,756.33,0.00012795,2]
[346774120,1735277251641,500.0,0.00011973,2]
[346774121,1735277253261,500.0,0.00012247,2]
[346774122,1735277253823,500.0,0.00012521,2]
[346774124,1735277255028,1074.5,0.00011973,2]
[346774125,1735277255077,500.0,0.00012795,2]
[346774126,1735277255385,1074.5,0.00012247,2]
[346774127,1735277255615,1074.5,0.00012521,2]
[346774128,1735277255660,500.0,0.00011975,2]
[346774129,1735277255810,1813.14,0.00011973,2]
[346774130,1735277255865,1074.5,0.00012795,2]
[346774131,1735277255924,1005.82,0.00011973,2]
[346774132,1735277256071,1813.14,0.00012247,2]
[346774133,1735277256190,1005.82,0.00012247,2]
[346774134,1735277256313,1813.14,0.00012521,2]
[346774135,1735277256435,1005.82,0.00012521,2]
[346774136,1735277256589,1813.14,0.00012795,2]
[346774137,1735277256684,1005.82,0.00012795,2]
[346774138,1735277256731,500.0,0.00012249,2]
[346774139,1735277257001,500.0,0.00012523,2]
[346774140,1735277257277,500.0,0.00011973,2]
[346774141,1735277257377,500.0,0.00012797,2]
[346774142,1735277257514,500.0,0.00012247,2]
[346774143,1735277257751,500.0,0.00012521,2]
[346774144,1735277258020,500.0,0.00012795,2]
[346774145,1735277258529,500.0,0.00011973,2]
[346774146,1735277258776,500.0,0.00012247,2]
[346774147,1735277258989,1830.54,0.00011973,2]
[346774148,1735277259040,500.0,0.00012521,2]
[346774149,1735277259317,500.0,0.00012795,2]
[346774150,1735277260288,1830.54,0.00012247,2]
[346774151,1735277260567,1830.54,0.00012521,2]
[346774152,1735277260960,753.67,0.00011976,2]
[346774153,1735277261088,2340.95,0.00011974,2]
[346774154,1735277261409,753.67,0.0001225,2]
[346774155,1735277261608,1830.54,0.00012795,2]
[346774156,1735277262158,753.67,0.00012524,2]
[346774157,1735277262565,2340.95,0.00012248,2]
[346774158,1735277262946,753.67,0.00012798,2]
[346774159,1735277263262,2340.95,0.00012522,2]
[346774160,1735277264039,2340.95,0.00012796,2]
[346774161,1735277264618,500.0,0.00011973,2]
[346774162,1735277264754,2382.07,0.00011974,2]
[346774163,1735277264874,500.0,0.00012247,2]
[346774164,1735277265350,500.0,0.00012521,2]
[346774165,1735277265445,517.56537581,0.00012795,2]
[346774166,1735277265499,500.0,0.00011975,2]
[346774167,1735277265556,2382.07,0.00012248,2]
[346774168,1735277265758,500.0,0.00012249,2]
[346774169,1735277265993,500.0,0.00012523,2]
[346774170,1735277266241,500.0,0.00012797,2]
[346774171,1735277266465,721.48,0.00011973,2]
[346774172,1735277266510,2382.07,0.00012522,2]
[346774173,1735277266707,721.48,0.00012247,2]
[346774174,1735277266884,1803.06,0.00011973,2]
[346774175,1735277266962,721.48,0.00012521,2]
[346774176,1735277267100,2382.07,0.00012796,2]
[346774177,1735277267150,1803.06,0.00012247,2]
[346774178,1735277267312,721.48,0.00012795,2]
[346774179,1735277267381,1803.06,0.00012521,2]
[346774180,1735277267614,1803.06,0.00012795,2]
[346774182,1735277270586,6334.64,0.00011973,2]
[346774183,1735277270741,500.0,0.00011973,2]
[346774184,1735277270822,6334.64,0.00012247,2]
[346774185,1735277271144,6334.64,0.00012521,2]
[346774186,1735277271195,500.0,0.00012247,2]
[346774187,1735277271344,6334.64,0.00012795,2]
[346774188,1735277271419,500.0,0.00012521,2]
[346774189,1735277271675,500.0,0.00012795,2]
[346774190,1735277272973,854.99,0.00011975,2]
[346774191,1735277273261,854.99,0.00012249,2]
[346774192,1735277273506,854.99,0.00012523,2]
[346774193,1735277273733,854.99,0.00012797,2]
[346774194,1735277275058,2636.88,0.00011976,2]
[346774195,1735277275911,500.0,0.00011973,2]
[346774196,1735277275953,2636.88,0.0001225,2]
[346774197,1735277276174,500.0,0.00012247,2]
[346774198,1735277276422,500.0,0.00012521,2]
[346774199,1735277276475,2636.88,0.00012524,2]
[346774200,1735277276672,500.0,0.00012795,2]
[346774201,1735277277291,2636.88,0.00012798,2]
[346774202,1735277279931,9235.13,0.00011973,2]
[346774203,1735277280373,9235.13,0.00012247,2]
[346774204,1735277280648,9235.13,0.00012521,2]
[346774205,1735277280937,9235.13,0.00012795,2]
[346774206,1735277281160,721.63,0.00011973,2]
[346774207,1735277281306,500.0,0.00011973,2]
[346774209,1735277281465,721.63,0.00012247,2]
[346774210,1735277281595,500.0,0.00012247,2]
[346774211,1735277281722,721.63,0.00012521,2]
[346774212,1735277281841,500.0,0.00012521,2]
[346774213,1735277281974,721.63,0.00012795,2]
[346774214,1735277282091,500.0,0.00012795,2]
[346774215,1735277285147,500.0,0.00011973,2]
[346774216,1735277285295,500.0,0.00012247,2]
[346774217,1735277285561,500.0,0.00012521,2]
[346774218,1735277285959,500.0,0.00012795,2]
[346774219,1735277288298,2678.49,0.00011976,2]
[346774220,1735277288345,794.86,0.00011973,2]
[346774221,1735277288575,794.86,0.00012247,2]
[346774222,1735277288626,604.13,0.00011973,2]
[346774223,1735277288819,794.86,0.00012521,2]
[346774224,1735277288868,604.13,0.00012247,2]
[346774225,1735277289088,794.86,0.00012795,2]
[346774226,1735277289133,604.13,0.00012521,2]
[346774227,1735277289176,2678.49,0.0001225,2]
[346774228,1735277289478,604.13,0.00012795,2]
[346774231,1735277290521,2678.49,0.00012524,2]
[346774232,1735277291298,2678.49,0.00012798,2]
[346774233,1735277291740,5279.18,0.00011975,2]
[346774234,1735277292145,904.77572,0.00013,2]
[346774235,1735277292195,500.0,0.00011975,2]
[346774236,1735277292379,5279.18,0.00012249,2]
[346774237,1735277292479,500.0,0.00012249,2]
[346774238,1735277292729,500.0,0.00012523,2]
[346774239,1735277292865,5279.18,0.00012523,2]
[346774240,1735277292912,4613.31,0.00011974,2]
[346774241,1735277292969,500.0,0.00012797,2]
[346774242,1735277293552,5279.18,0.00012797,2]
[346774243,1735277293607,4613.31,0.00012248,2]
[346774244,1735277294183,4613.31,0.00012522,2]
[346774245,1735277295043,4613.31,0.00012796,2]
[346774246,1735277295521,500.0,0.00011973,2]
[346774247,1735277295766,500.0,0.00012247,2]
[346774248,1735277296581,500.0,0.00012521,2]
[346774249,1735277296680,515.89827486,0.00012795,2]
[346774250,1735277296900,1053.55,0.00011973,2]
[346774251,1735277297188,1053.55,0.00012247,2]
[346774252,1735277297467,1053.55,0.00012521,2]
[346774253,1735277297734,1053.55,0.00012795,2]
[346774254,1735277297870,832.24,0.00011973,2]
[346774255,1735277298090,832.24,0.00012247,2]
[346774256,1735277298325,560.19,0.00011973,2]
[346774257,1735277298373,832.24,0.00012521,2]
[346774258,1735277298583,560.19,0.00012247,2]
[346774259,1735277298630,832.24,0.00012795,2]
[346774260,1735277298796,1051.9,0.00011973,2]
[346774261,1735277298852,560.19,0.00012521,2]
[346774262,1735277299075,1051.9,0.00012247,2]
[346774263,1735277299123,560.19,0.00012795,2]
[346774264,1735277299325,1051.9,0.00012521,2]
[346774265,1735277299561,1051.9,0.00012795,2]
[346774266,1735277300155,500.0,0.00011973,2]
[346774267,1735277300419,500.0,0.00012247,2]
[346774268,1735277300782,500.0,0.00012521,2]
[346774269,1735277300978,500.0,0.00012795,2]
[346774270,1735277301850,1057.0,0.00012385,2]
[346774271,1735277304061,500.0,0.00011973,2]
[346774272,1735277304252,1045.84,0.00011973,2]
[346774273,1735277304383,500.0,0.00011973,2]
[346774274,1735277304439,500.0,0.00011974,2]
[346774275,1735277304495,1045.84,0.00012247,2]
[346774276,1735277304666,500.0,0.00012247,2]
[346774277,1735277304713,500.0,0.00011975,2]
[346774278,1735277304768,1045.84,0.00012521,2]
[346774279,1735277304952,500.0,0.00012521,2]
[346774280,1735277305013,500.0,0.00011977,2]
[346774281,1735277305063,1045.84,0.00012795,2]
[346774282,1735277305207,500.0,0.00012795,2]
[346774283,1735277305275,500.0,0.00012247,2]
[346774284,1735277305538,500.0,0.00012248,2]
[346774285,1735277305832,500.0,0.00012249,2]
[346774286,1735277306062,500.0,0.0001225,2]
[346774287,1735277306306,500.0,0.00012259,2]
[346774288,1735277307067,500.0,0.00012328,2]
[346774289,1735277307501,500.0,0.00012328,2]
[346774290,1735277307570,500.0,0.00012328,2]
[346774291,1735277307639,750.49,0.00011973,2]
[346774292,1735277307686,500.0,0.00012521,2]
[346774293,1735277307795,750.49,0.00012247,2]
[346774294,1735277307848,500.0,0.00012521,2]
[346774295,1735277307899,10495.1,0.00011976,2]
[346774296,1735277308058,750.49,0.00012521,2]
[346774297,1735277308133,500.0,0.00012523,2]
[346774298,1735277308182,500.0,0.00011973,2]
[346774299,1735277308309,750.49,0.00012795,2]
[346774300,1735277308429,437.90592108,0.00012524,2]
[346774301,1735277308477,500.0,0.00012247,2]
[346774302,1735277308676,500.0,0.00012521,2]
[346774303,1735277308827,10495.1,0.0001225,2]
[346774304,1735277308919,500.0,0.00012795,2]
[346774305,1735277308966,3187.53,0.00011973,2]
[346774306,1735277309029,923.06,0.00011973,2]
[346774307,1735277309324,923.06,0.00012247,2]
[346774308,1735277309442,10495.1,0.00012524,2]
[346774309,1735277309579,3187.53,0.00012247,2]
[346774310,1735277309627,923.06,0.00012521,2]
[346774311,1735277309872,923.06,0.00012795,2]
[346774312,1735277310050,10495.1,0.00012798,2]
[346774313,1735277310180,500.0,0.00011973,2]
[346774314,1735277310233,3187.53,0.00012521,2]
[346774315,1735277310395,2196.35,0.00011973,2]
[346774316,1735277310446,500.0,0.00011973,2]
[346774317,1735277310499,500.0,0.00012247,2]
[346774318,1735277310672,500.0,0.00012521,2]
[346774319,1735277310719,500.0,0.00012247,2]
[346774320,1735277310879,3187.53,0.00012795,2]
[346774321,1735277310939,500.0,0.00012521,2]
[346774322,1735277310987,500.0,0.00012795,2]
[346774323,1735277311099,2196.35,0.00012247,2]
[346774324,1735277311186,437.37574737,0.00012795,2]
[346774325,1735277311620,2196.35,0.00012521,2]
[346774326,1735277312313,2196.35,0.00012795,2]
[346774327,1735277319844,500.0,0.00011973,2]
[346774328,1735277320084,521.32822303,0.00012247,2]
[346774329,1735277321248,8278.96,0.00011974,2]
[346774330,1735277321510,3425.46,0.00011973,2]
[346774331,1735277321658,8278.96,0.00012248,2]
[346774332,1735277322105,3425.46,0.00012247,2]
[346774333,1735277322152,500.0,0.00011973,2]
[346774334,1735277322373,3425.46,0.00012521,2]
[346774335,1735277322421,500.0,0.00012247,2]
[346774336,1735277322645,3425.46,0.00012795,2]
[346774337,1735277322719,500.0,0.00012521,2]
[346774338,1735277322764,8278.96,0.00012522,2]
[346774339,1735277323004,428.65361151,0.00012795,2]
[346774340,1735277323050,1057.0,0.00011765,2]
[346774341,1735277323231,1376.33,0.00011973,2]
[346774342,1735277323359,8278.96,0.00012796,2]
[346774343,1735277323411,500.0,0.00011973,2]
[346774344,1735277323479,1376.33,0.00012247,2]
[346774348,1735277323670,500.0,0.00012247,2]
[346774351,1735277323729,1376.33,0.00012521,2]
[346774356,1735277323932,500.0,0.00012521,2]
[346774357,1735277324039,1376.33,0.00012795,2]
[346774358,1735277324240,500.0,0.00012795,2]
[346774359,1735277324366,500.0,0.00011974,2]
[346774360,1735277324908,500.0,0.00012248,2]
[346774361,1735277325271,500.0,0.00011973,2]
[346774362,1735277325555,500.0,0.00012247,2]
[346774363,1735277325671,500.0,0.00012522,2]
[346774364,1735277325805,500.0,0.00012521,2]
[346774365,1735277326256,500.0,0.00012795,2]
[346774366,1735277326530,500.0,0.00012796,2]
[346774367,1735277326885,500.0,0.00011973,2]
[346774368,1735277327231,500.0,0.00012247,2]
[346774369,1735277328029,500.0,0.00012521,2]
[346774370,1735277328106,500.0,0.00012795,2]
[346774371,1735277328238,500.0,0.00011973,2]
[346774372,1735277328526,500.0,0.00012247,2]
[346774373,1735277329157,500.0,0.00012521,2]
[346774374,1735277329421,500.0,0.00012795,2]
[346774375,1735277331376,500.0,0.00011973,2]
[346774376,1735277331613,500.0,0.00012247,2]
[346774377,1735277331855,500.0,0.00012521,2]
[346774378,1735277332155,500.0,0.00012795,2]
[346774379,1735277333223,500.0,0.00011973,2]
[346774380,1735277333487,500.0,0.00012247,2]
[346774381,1735277333727,500.0,0.00012521,2]
[346774382,1735277333958,500.0,0.00012795,2]
[346774383,1735277334254,628.06,0.00011976,2]
[346774384,1735277334946,1446.75926,0.00013,2]
[346774385,1735277335854,628.06,0.0001225,2]
[346774386,1735277335913,561.52,0.00011973,2]
[346774387,1735277336169,561.52,0.00012247,2]
[346774388,1735277336450,561.52,0.00012521,2]
[346774389,1735277336654,1117.72,0.00011973,2]
[346774390,1735277336712,561.52,0.00012795,2]
[346774391,1735277336751,628.06,0.00012524,2]
[346774392,1735277336793,500.0,0.00011973,2]
[346774393,1735277336907,1117.72,0.00012247,2]
[346774394,1735277337021,500.0,0.00012247,2]
[346774395,1735277337095,500.0,0.00011973,2]
[346774396,1735277337172,1117.72,0.00012521,2]
[346774397,1735277337288,500.0,0.00012521,2]
[346774398,1735277337355,647.81,0.00011973,2]
[346774399,1735277337399,500.0,0.00012247,2]
[346774400,1735277337444,1117.72,0.00012795,2]
[346774401,1735277337527,500.0,0.00012795,2]
[346774402,1735277337574,2412.05,0.00011976,2]
[346774403,1735277337619,647.81,0.00012247,2]
[346774404,1735277337663,628.06,0.00012798,2]
[346774405,1735277337705,500.0,0.00012521,2]
[346774406,1735277338417,647.81,0.00012521,2]
[346774407,1735277338460,500.0,0.00012795,2]
[346774408,1735277338556,647.81,0.00012795,2]
[346774409,1735277338645,2412.05,0.0001225,2]
[346774410,1735277338840,2412.05,0.00012524,2]
[346774411,1735277339447,2412.05,0.00012798,2]
[346774412,1735277339618,3400.38,0.00011973,2]
[346774413,1735277340896,3400.38,0.00012247,2]
[346774414,1735277341033,1676.66,0.00011975,2]
[346774415,1735277341222,3400.38,0.00012521,2]
[346774416,1735277341854,1676.66,0.00012249,2]
[346774417,1735277342091,3400.38,0.00012795,2]
[346774418,1735277342747,500.0,0.00011973,2]
[346774419,1735277342890,1676.66,0.00012523,2]
[346774420,1735277343025,500.0,0.00012247,2]
[346774421,1735277343565,1676.66,0.00012797,2]
[346774422,1735277344149,1057.0,0.00011177,2]
[346774423,1735277346337,500.0,0.00012521,2]
[346774424,1735277346674,483.11181059,0.00012795,2]
[346774425,1735277347282,500.0,0.00011973,2]
[346774426,1735277347554,500.0,0.00012247,2]
[346774427,1735277347709,942.38,0.00011973,2]
[346774428,1735277347893,500.0,0.00012521,2]
[346774429,1735277347995,942.38,0.00012247,2]
[346774430,1735277348161,500.0,0.00012795,2]
[346774431,1735277348244,942.38,0.00012521,2]
[346774442,1735277348787,1077.6,0.00011973,2]
[346774443,1735277348863,942.38,0.00012795,2]
[346774444,1735277348922,1077.6,0.00012247,2]
[346774445,1735277349000,1077.6,0.00012521,2]
[346774446,1735277349436,1077.6,0.00012795,2]
[346774447,1735277351916,500.0,0.00011973,2]
[346774448,1735277352155,500.0,0.00012247,2]
[346774449,1735277352472,500.0,0.00012521,2]
[346774450,1735277352753,500.0,0.00012795,2]
[346774451,1735277353973,666.87,0.00011973,2]
[346774452,1735277354244,666.87,0.00012247,2]
[346774453,1735277354518,666.87,0.00012521,2]
[346774454,1735277354782,666.87,0.00012795,2]
[346774455,1735277355258,758.37,0.00011973,2]
[346774456,1735277355534,758.37,0.00012247,2]
[346774457,1735277355816,758.37,0.00012521,2]
[346774458,1735277356090,758.37,0.00012795,2]
[346774459,1735277357185,1190.84,0.00011973,2]
[346774460,1735277357326,500.0,0.00011974,2]
[346774461,1735277357467,1190.84,0.00012247,2]
[346774462,1735277358197,1190.84,0.00012521,2]
[346774463,1735277358317,1190.84,0.00012795,2]
[346774464,1735277359051,500.0,0.00012248,2]
[346774465,1735277359387,270.16068123,0.00012522,2]
[346774466,1735277360938,500.0,0.00011973,2]
[346774467,1735277361185,500.0,0.00012247,2]
[346774468,1735277361775,500.0,0.00012521,2]
[346774469,1735277362028,500.0,0.00012795,2]
[346774470,1735277362076,2232.07,0.00011976,2]
[346774471,1735277362300,3241.46,0.00011973,2]
[346774472,1735277362669,2232.07,0.0001225,2]
[346774473,1735277362930,3241.46,0.00012247,2]
[346774474,1735277365294,1057.0,0.00010618,2]
[346774475,1735277365621,3241.46,0.00012521,2]
[346774476,1735277365667,2232.07,0.00012524,2]
[346774477,1735277366329,3241.46,0.00012795,2]
[346774478,1735277366494,2232.07,0.00012798,2]
[346774479,1735277367895,842.89,0.00011973,2]
[346774480,1735277368134,842.89,0.00012247,2]
[346774481,1735277368433,842.89,0.00012521,2]
[346774482,1735277368563,500.0,0.00011973,2]
[346774483,1735277368688,842.89,0.00012795,2]
[346774484,1735277368792,500.0,0.00012247,2]
[346774485,1735277368850,2791.25,0.00011974,2]
[346774486,1735277369619,500.0,0.00012521,2]
[346774487,1735277369759,3768.05,0.00011973,2]
[346774488,1735277369812,500.0,0.00012795,2]
[346774489,1735277369860,2903.13,0.00011975,2]
[346774490,1735277369904,2791.25,0.00012248,2]
[346774491,1735277369969,3768.05,0.00012247,2]
[346774492,1735277370560,2903.13,0.00012249,2]
[346774493,1735277370661,677.99,0.00011973,2]
[346774494,1735277370703,2791.25,0.00012522,2]
[346774495,1735277370855,3768.05,0.00012521,2]
[346774496,1735277370926,873.98,0.00011973,2]
[346774497,1735277370968,677.99,0.00012247,2]
[346774498,1735277371166,677.99,0.00012521,2]
[346774499,1735277371209,873.98,0.00012247,2]
[346774500,1735277371407,677.99,0.00012795,2]
[346774501,1735277371472,873.98,0.00012521,2]
[346774502,1735277371554,2791.25,0.00012796,2]
[346774503,1735277371634,2903.13,0.00012523,2]
[346774504,1735277371744,873.98,0.00012795,2]
[346774505,1735277372121,500.0,0.00011974,2]
[346774506,1735277372564,2903.13,0.00012797,2]
[346774507,1735277372726,500.0,0.00012248,2]
[346774508,1735277373252,500.0,0.00012522,2]
[346774509,1735277373410,3768.05,0.00012795,2]
[346774514,1735277373611,500.0,0.00012796,2]
[346774521,1735277376001,1878.91,0.00011976,2]
[346774522,1735277376077,1610.37,0.00011974,2]
[346774523,1735277376588,1610.37,0.00012248,2]
[346774524,1735277376666,1878.91,0.0001225,2]
[346774525,1735277377101,1610.37,0.00012522,2]
[346774526,1735277377223,1878.91,0.00012524,2]
[346774527,1735277377764,753.97977,0.00013,2]
[346774528,1735277378120,1610.37,0.00012796,2]
[346774529,1735277378161,1878.91,0.00012798,2]
[346774530,1735277378595,500.0,0.00011973,2]
[346774531,1735277378848,500.0,0.00012247,2]
[346774532,1735277379103,500.0,0.00012521,2]
[346774533,1735277379349,500.0,0.00012795,2]
[346774534,1735277379394,247.25292029,0.00011973,2]
[346774535,1735277383608,1219.78,0.00011973,2]
[346774536,1735277383899,1219.78,0.00012247,2]
[346774537,1735277384173,1219.78,0.00012521,2]
[346774538,1735277384462,1219.78,0.00012795,2]
[346774539,1735277384782,592.50340242,0.00011973,2]
[346774540,1735277386304,500.0,0.00011973,2]
[346774541,1735277386552,500.0,0.00012247,2]
[346774542,1735277386816,500.0,0.00012521,2]
[346774543,1735277387062,500.0,0.00012795,2]
[346774544,1735277387110,500.0,0.00011973,2]
[346774545,1735277387324,500.0,0.00012247,2]
[346774546,1735277387582,518.29368572,0.00012521,2]
[346774547,1735277392124,895.42,0.00011973,2]
[346774548,1735277392222,1465.3,0.00011973,2]
[346774549,1735277392269,1144.94,0.00011973,2]
[346774550,1735277392379,895.42,0.00012247,2]
[346774551,1735277392486,1465.3,0.00012247,2]
[346774552,1735277392532,1144.94,0.00012247,2]
[346774553,1735277392647,895.42,0.00012521,2]
[346774554,1735277392748,1465.3,0.00012521,2]
[346774555,1735277392805,1144.94,0.00012521,2]
[346774556,1735277392934,895.42,0.00012795,2]
[346774557,1735277393010,1465.3,0.00012795,2]
[346774558,1735277393063,1144.94,0.00012795,2]
[346774559,1735277393546,500.0,0.00011973,2]
[346774560,1735277393959,500.0,0.00012247,2]
[346774561,1735277394135,500.0,0.00012521,2]
[346774562,1735277394189,795.83,0.00011973,2]
[346774563,1735277394438,500.0,0.00012795,2]
[346774564,1735277394498,795.83,0.00012247,2]
[346774565,1735277394748,795.83,0.00012521,2]
[346774566,1735277395167,795.83,0.00012795,2]
[346774567,1735277396884,607.59,0.00011975,2]
[346774568,1735277397557,607.59,0.00012249,2]
[346774569,1735277398443,607.59,0.00012523,2]
[346774581,1735277400981,607.59,0.00012797,2]
[346774582,1735277401028,933.49,0.00011973,2]
[346774583,1735277401087,933.49,0.00012247,2]
[346774584,1735277401185,933.49,0.00012521,2]
[346774585,1735277401468,933.49,0.00012795,2]
[346774586,1735277404119,2052.88,0.00011974,2]
[346774587,1735277404247,708.57,0.00011973,2]
[346774588,1735277404479,500.0,0.00011973,2]
[346774589,1735277404530,708.57,0.00012247,2]
[346774590,1735277404705,2052.88,0.00012248,2]
[346774591,1735277404760,500.0,0.00012247,2]
[346774592,1735277404808,708.57,0.00012521,2]
[346774593,1735277405025,500.0,0.00012521,2]
[346774594,1735277405075,708.57,0.00012795,2]
[346774595,1735277405502,500.0,0.00012795,2]
[346774596,1735277405571,2052.88,0.00012522,2]
[346774597,1735277405629,2010.05,0.00011976,2]
[346774598,1735277405985,2052.88,0.00012796,2]
[346774599,1735277406890,2010.05,0.0001225,2]
[346774600,1735277407908,2010.05,0.00012524,2]
[346774601,1735277409301,2010.05,0.00012798,2]
[346774602,1735277409362,1854.92,0.00011973,2]
[346774603,1735277409629,1854.92,0.00011974,2]
[346774604,1735277409931,1854.92,0.00011975,2]
[346774605,1735277410169,1854.92,0.00011977,2]
[346774606,1735277410478,1854.92,0.00012247,2]
[346774607,1735277410738,1854.92,0.00012248,2]
[346774608,1735277411375,1854.92,0.00012249,2]
[346774609,1735277411446,1854.92,0.00012251,2]
[346774610,1735277411524,500.0,0.00011973,2]
[346774611,1735277411577,1854.92,0.00012259,2]
[346774612,1735277411628,4753.69,0.00011976,2]
[346774613,1735277411764,1854.92,0.00012328,2]
[346774614,1735277411821,500.0,0.00012247,2]
[346774615,1735277412018,2459.5,0.00011973,2]
[346774616,1735277412068,1854.92,0.00012328,2]
[346774617,1735277412118,500.0,0.00012521,2]
[346774618,1735277412295,500.0,0.00012795,2]
[346774619,1735277412351,1854.92,0.00012328,2]
[346774620,1735277412454,4753.69,0.0001225,2]
[346774621,1735277412629,1854.92,0.00012521,2]
[346774622,1735277412765,1266.0,0.0001223,2]
[346774623,1735277413099,2459.5,0.00012247,2]
[346774624,1735277413261,1854.92,0.00012522,2]
[346774625,1735277413315,1116.09,0.00011973,2]
[346774626,1735277413367,4753.69,0.00012524,2]
[346774627,1735277413455,4399.32,0.00011974,2]
[346774628,1735277413512,1854.92,0.00012523,2]
[346774629,1735277413574,1116.09,0.00012247,2]
[346774630,1735277413775,4753.69,0.00012798,2]
[346774631,1735277413822,2459.5,0.00012521,2]
[346774632,1735277413878,1116.09,0.00012521,2]
[346774633,1735277414089,1116.09,0.00012795,2]
[346774634,1735277414145,4399.32,0.00012248,2]
[346774635,1735277414607,2459.5,0.00012795,2]
[346774636,1735277414710,4399.32,0.00012522,2]
[346774637,1735277414851,1854.92,0.00012525,2]
[346774638,1735277415110,1854.92,0.00012795,2]
[346774639,1735277415487,1854.92,0.00012796,2]
[346774640,1735277415580,626.26,0.00011973,2]
[346774641,1735277415732,1854.92,0.00012797,2]
[346774642,1735277415879,626.26,0.00012247,2]
[346774643,1735277416334,4399.32,0.00012796,2]
[346774644,1735277416413,626.26,0.00012521,2]
[346774645,1735277416467,1854.92,0.00012899,2]
[346774646,1735277416553,626.26,0.00012795,2]
[346774647,1735277416612,1854.92,0.00012899,2]
[346774648,1735277416698,1854.92,0.00012899,2]